bitfinex-derivatives/quotes_BNBF0:USTF0_20250603
["timestamp","ask_amount","ask_price","bid_price","bid_amount"]
[1748991417310,1.0043886,660.99,660.63,0.30274132]
[1748991417510,1.0043886,660.98,660.63,0.30274132]
[1748991417705,1.0043886,660.97,660.63,0.30274132]
[1748991417901,1.1267446,661.16,660.63,0.30274132]
[1748991418102,1.00423417,661.15,660.63,0.30274132]
[1748991418403,1.00423417,661.14,660.63,0.30274132]
[1748991418602,1.00423417,661.13,660.63,0.30274132]
[1748991418802,1.00423417,661.12,660.63,0.30274132]
[1748991419003,1.00423417,661.11,660.63,0.30274132]
[1748991419207,1.00423417,661.1,660.63,0.30274132]
[1748991419401,1.1267446,661.16,660.63,0.30274132]
[1748991419402,1.00423417,661.09,660.63,0.30274132]
[1748991419607,1.00423417,661.08,660.63,0.30274132]
[1748991419807,1.00421406,661.07,660.63,0.30274132]
[1748991420009,1.00421406,661.06,660.63,0.30274132]
[1748991420307,1.00421406,661.05,660.63,0.30274132]
[1748991420503,1.00421406,661.04,660.63,0.30274132]
[1748991420703,1.00421406,661.03,660.63,0.30274132]
[1748991420908,1.00421406,661.02,660.63,0.30274132]
[1748991421107,1.00421406,661.01,660.63,0.30274132]
[1748991421309,1.00421406,661.0,660.63,0.78097988]
[1748991421509,1.00421406,660.99,660.63,0.78097988]
[1748991421710,1.12666863,661.15,660.63,0.30274132]
[1748991421711,1.00421406,660.98,660.63,0.30274132]
[1748991421906,1.00421406,660.97,660.63,0.30274132]
[1748991422106,1.00421406,660.96,660.63,0.30274132]
[1748991422310,1.00444901,660.95,660.65,0.47823856]
[1748991422512,1.12671337,661.14,660.66,0.30272757]
[1748991422812,1.00443492,661.13,660.66,0.78096613]
[1748991423013,1.00443492,661.12,660.66,0.78096613]
[1748991423212,1.00443492,661.11,660.66,0.30272757]
[1748991423413,1.00443492,661.1,660.68,0.47823856]
[1748991423615,1.00443492,661.09,660.68,0.47823856]
[1748991423911,1.00443492,661.08,660.68,0.47823856]
[1748991424111,1.00443492,661.07,660.68,0.47823856]
[1748991424314,1.00443492,661.06,660.7,0.47823856]
[1748991424614,1.00443492,661.05,660.7,0.47823856]
[1748991424911,1.00443492,661.04,660.7,0.47823856]
[1748991425216,1.00443492,661.03,660.68,0.47823856]
[1748991425510,1.00443492,661.02,660.72,0.47823856]
[1748991425711,1.00443492,661.01,660.72,0.47823856]
[1748991425916,1.00443492,661.0,660.71,0.47823856]
[1748991426113,1.00445936,660.99,660.71,0.47823856]
[1748991426313,1.00445936,660.98,660.74,0.47823856]
[1748991426613,1.00445936,660.97,660.74,0.47823856]
[1748991426913,1.00445936,660.96,660.75,0.47823856]
[1748991427210,1.00445936,660.95,660.75,0.47823856]
[1748991427517,1.12674541,661.14,660.77,0.47823856]
[1748991427717,1.00409909,661.13,660.77,0.47823856]
[1748991427915,1.00409909,661.12,660.77,0.47823856]
[1748991428213,1.00409909,661.11,660.77,0.47823856]
[1748991428414,1.12674541,661.14,660.66,0.30272757]
[1748991428415,1.00409909,661.1,660.66,0.30272757]
[1748991428614,1.00409909,661.09,660.66,0.30272757]
[1748991428814,1.00409909,661.08,660.66,0.30272757]
[1748991429115,1.00409909,661.07,660.66,0.30272757]
[1748991429318,1.00409909,661.06,660.66,0.30272757]
[1748991429511,1.00409909,661.05,660.66,0.30272757]
[1748991429817,1.00409909,661.04,660.66,0.30272757]
[1748991430010,1.00413974,661.03,660.66,0.30272757]
[1748991430208,1.00413974,661.02,660.66,0.30272757]
[1748991430411,1.00413974,661.01,660.66,0.30272757]
[1748991430714,1.12688686,661.13,660.66,0.30272757]
[1748991430715,1.00413974,661.0,660.66,0.30272757]
[1748991430914,1.12688686,661.13,660.66,0.30272757]
[1748991430915,1.00413974,660.99,660.66,0.30272757]
[1748991431117,1.00413974,660.98,660.66,0.30272757]
[1748991431314,1.00413974,660.97,660.66,0.30272757]
[1748991431512,1.00413974,660.96,660.66,0.30272757]
[1748991431714,1.00413974,660.95,660.66,0.30272757]
[1748991431911,1.00413974,660.94,660.66,0.30272757]
[1748991432113,1.00413974,660.93,660.66,0.30272757]
[1748991432414,1.00413974,660.92,660.66,0.30272757]
[1748991432618,1.00413974,660.91,660.66,0.30272757]
[1748991432826,1.00413974,660.9,660.66,0.30272757]
[1748991433014,1.00413974,660.89,660.66,0.30272757]
[1748991433213,1.00413974,660.88,660.66,0.30272757]
[1748991433416,1.00413974,660.87,660.66,0.30272757]
[1748991433619,1.00413974,660.86,660.66,0.30272757]
[1748991433811,1.00413974,660.85,660.66,0.30272757]
[1748991434011,1.00413974,660.84,660.66,0.30272757]
[1748991434314,1.00413974,660.83,660.66,0.30272757]
[1748991434517,1.00413974,660.82,660.66,0.30272757]
[1748991434717,1.12688686,661.13,660.66,0.30272757]
[1748991434718,1.00413974,660.81,660.66,0.30272757]
[1748991434917,1.12688686,661.13,660.66,0.30272757]
[1748991435120,1.00319559,661.12,660.66,0.30272757]
[1748991435320,1.00319559,661.11,660.66,0.30272757]
[1748991435521,1.00319559,661.1,660.66,0.30272757]
[1748991435820,1.00319559,661.09,660.66,0.30272757]
[1748991436017,1.00319559,661.08,660.66,0.30272757]
[1748991436222,1.00319559,661.07,660.66,0.30272757]
[1748991436414,1.12688686,661.13,660.66,0.30272757]
[1748991436415,1.00319559,661.06,660.66,0.30272757]
[1748991436614,1.00319559,661.05,660.66,0.30272757]
[1748991436814,1.00319559,661.04,660.66,0.30272757]
[1748991437018,1.00319559,661.03,660.66,0.30272757]
[1748991437218,1.00319559,661.02,660.66,0.30272757]
[1748991437418,1.00319559,661.01,660.66,0.30272757]
[1748991437618,1.00319559,661.0,660.66,0.30272757]
[1748991437817,1.00340094,660.99,660.66,0.30272757]
[1748991438017,1.00340094,660.98,660.66,0.30272757]
[1748991438324,1.00340094,660.97,660.66,0.30272757]
[1748991438517,1.00340094,660.96,660.66,0.30272757]
[1748991438716,1.00340094,660.95,660.66,0.30272757]
[1748991438921,1.00340094,660.94,660.66,0.30272757]
[1748991439119,1.00340094,660.93,660.66,0.30272757]
[1748991439322,1.00340094,660.92,660.66,0.30272757]
[1748991439517,1.00340094,660.91,660.66,0.30272757]
[1748991439722,1.00340094,660.9,660.66,0.30272757]
[1748991440023,1.00340094,660.89,660.66,0.30272757]
[1748991440220,1.00340094,660.88,660.66,0.30272757]
[1748991440420,1.12706549,661.12,660.66,0.30272757]
[1748991440421,1.00340094,660.87,660.66,0.30272757]
[1748991440622,1.00340094,660.86,660.66,0.30272757]
[1748991440818,1.00340094,660.85,660.66,0.30272757]
[1748991441123,1.12706549,661.12,660.66,0.30272757]
[1748991441317,1.00368399,661.11,660.66,0.30272757]
[1748991441516,1.00368399,661.1,660.66,0.30272757]
[1748991441721,1.50789114,661.27,660.66,0.30272757]
[1748991441918,1.12775707,661.12,660.66,0.30272757]
[1748991442219,1.00387232,661.11,660.66,0.30272757]
[1748991442422,1.00387232,661.1,660.66,0.30272757]
[1748991442623,1.00387232,661.09,660.66,0.30272757]
[1748991442820,1.12775707,661.11,660.66,0.30272757]
[1748991442821,1.00406651,661.08,660.66,0.30272757]
[1748991443021,1.00406651,661.07,660.66,0.30272757]
[1748991443222,1.00406651,661.06,660.66,0.30272757]
[1748991443521,1.00406651,661.05,660.66,0.30272757]
[1748991443826,1.00406651,661.04,660.66,0.30272757]
[1748991444025,1.00406651,661.03,660.66,0.30272757]
[1748991444225,1.00406651,661.02,660.66,0.30272757]
[1748991444426,1.00406651,661.01,660.66,0.30272757]
[1748991444721,1.00406651,661.0,660.66,0.30272757]
[1748991444924,1.00406651,660.99,660.66,0.30272757]
[1748991445124,1.00406651,660.98,660.66,0.30272757]
[1748991445323,1.00406651,660.97,660.66,0.30272757]
[1748991445522,1.00406651,660.96,660.66,0.30272757]
[1748991445727,1.00611946,660.95,660.66,0.30272757]
[1748991445923,1.00611946,660.94,660.66,0.30272757]
[1748991446125,1.00611946,660.93,660.66,0.30272757]
[1748991446323,1.00611946,660.92,660.66,0.30272757]
[1748991446526,1.00611946,660.91,660.66,0.30272757]
[1748991446726,1.00611946,660.9,660.66,0.30272757]
[1748991446927,1.00611946,660.89,660.66,0.30272757]
[1748991447226,1.00611946,660.88,660.66,0.30272757]
[1748991447428,1.00611946,660.87,660.66,0.30272757]
[1748991447622,1.00611946,660.86,660.66,0.30272757]
[1748991447832,1.00611946,660.85,660.66,0.30272757]
[1748991448032,1.00611946,660.84,660.66,0.30272757]
[1748991448233,1.00611946,660.83,660.66,0.30272757]
[1748991448534,1.00611946,660.82,660.66,0.30272757]
[1748991448734,1.00611946,660.81,660.66,0.30272757]
[1748991448931,1.00611946,660.8,660.66,0.30272757]
[1748991449127,1.00611946,660.79,660.66,0.30272757]
[1748991449330,3.76960388,661.82,660.66,0.30272757]
[1748991449331,1.00714883,660.78,660.66,0.30272757]
[1748991449529,1.50789114,661.15,660.66,0.30272757]
[1748991449735,1.1302828,661.01,660.66,0.30272757]
[1748991449933,1.00715137,661.0,660.66,0.30272757]
[1748991450134,1.00715137,660.99,660.66,0.30272757]
[1748991450334,1.00715137,660.98,660.66,0.30272757]
[1748991450535,1.00715137,660.97,660.66,0.30272757]
[1748991450736,1.00715137,660.96,660.66,0.30272757]
[1748991450938,1.00715137,660.95,660.66,0.30272757]
[1748991451134,1.00715137,660.94,660.66,0.30272757]
[1748991451329,1.00715137,660.93,660.66,0.30272757]
[1748991451534,1.00715137,660.92,660.66,0.30272757]
[1748991451735,1.00715137,660.91,660.66,0.30272757]
[1748991452034,1.00715137,660.9,660.66,0.30272757]
[1748991452234,1.00715137,660.89,660.66,0.30272757]
[1748991452435,1.00715137,660.88,660.66,0.30272757]
[1748991452627,1.1302828,660.99,660.66,0.30272757]
[1748991452628,1.00715137,660.87,660.66,0.30272757]
[1748991452833,1.00715137,660.86,660.66,0.30272757]
[1748991453031,1.00715137,660.85,660.66,0.30272757]
[1748991453335,1.00715137,660.84,660.66,0.30272757]
[1748991453535,1.00781849,660.83,660.66,0.30272757]
[1748991453735,1.00781849,660.82,660.66,0.30272757]
[1748991454037,1.00781849,660.81,660.66,0.30272757]
[1748991454332,1.00781849,660.8,660.66,0.30272757]
[1748991454535,1.00781849,660.79,660.66,0.30272757]
[1748991454734,1.00781849,660.78,660.66,0.30272757]
[1748991454933,1.00781849,660.77,660.66,0.30272757]
[1748991455130,1.13090819,660.96,660.66,0.30272757]
[1748991455329,1.0078215,660.95,660.66,0.30272757]
[1748991455531,1.0078215,660.94,660.66,0.30272757]
[1748991455731,1.0078215,660.93,660.66,0.30272757]
[1748991455937,1.0078215,660.92,660.66,0.30272757]
[1748991456132,1.0078215,660.91,660.66,0.30272757]
[1748991456338,1.0078215,660.9,660.66,0.30272757]
[1748991456537,1.0078215,660.89,660.66,0.30272757]
[1748991456832,1.0078215,660.88,660.66,0.30272757]
[1748991457136,1.0078215,660.87,660.66,0.30272757]
[1748991457337,1.0078215,660.86,660.66,0.30272757]
[1748991457538,1.0078215,660.85,660.66,0.30272757]
[1748991457731,1.0078215,660.84,660.66,0.30272757]
[1748991457936,1.0078215,660.83,660.66,0.30272757]
[1748991458135,1.0078215,660.82,660.66,0.30272757]
[1748991458334,1.0078215,660.81,660.66,0.30272757]
[1748991458635,1.13090819,660.96,660.66,0.30272757]
[1748991458636,1.0078215,660.8,660.66,0.30272757]
[1748991458940,1.0078215,660.79,660.66,0.30272757]
[1748991459240,1.0078215,660.78,660.66,0.30272757]
[1748991459441,1.0078215,660.77,660.66,0.30272757]
[1748991459638,1.13090819,660.96,660.66,0.30272757]
[1748991459845,1.00791032,660.95,660.66,0.30272757]
[1748991460039,1.00791032,660.94,660.66,0.30272757]
[1748991460241,1.00791032,660.93,660.66,0.30272757]
[1748991460438,1.00791032,660.92,660.66,0.30272757]
[1748991460640,1.00791032,660.91,660.66,0.30272757]
[1748991460841,1.00791032,660.9,660.66,0.30272757]
[1748991461043,1.00791032,660.89,660.66,0.30272757]
[1748991461241,1.00791032,660.88,660.66,0.30272757]
[1748991461445,1.00791032,660.87,660.66,0.30272757]
[1748991461638,1.00791032,660.86,660.66,0.30272757]
[1748991461839,1.00791032,660.85,660.66,0.30272757]
[1748991462044,1.00791032,660.84,660.66,0.30272757]
[1748991462242,1.00791032,660.83,660.66,0.30272757]
[1748991462446,1.00791032,660.82,660.66,0.78096613]
[1748991462746,1.00791032,660.81,660.66,0.78096613]
[1748991462944,1.00791032,660.8,660.66,0.78096613]
[1748991463140,1.00791032,660.79,660.66,0.78096613]
[1748991463342,1.13090819,660.98,660.66,0.78096613]
[1748991463545,1.00826008,660.97,660.66,0.78096613]
[1748991463745,1.00826008,660.96,660.66,0.78096613]
[1748991463945,1.00826008,660.95,660.66,0.78096613]
[1748991464240,1.00826008,660.94,660.66,0.78096613]
[1748991464444,1.00826008,660.93,660.66,0.78096613]
[1748991464741,1.00826008,660.92,660.66,0.78096613]
[1748991464941,1.00826008,660.91,660.66,0.78096613]
[1748991465145,1.00826008,660.9,660.66,0.78096613]
[1748991465444,1.00826008,660.89,660.66,0.78096613]
[1748991465644,1.00826008,660.88,660.66,0.78096613]
[1748991465844,1.00826008,660.87,660.66,0.78096613]
[1748991466040,1.00826008,660.86,660.66,0.78096613]
[1748991466239,1.00826008,660.85,660.66,0.78096613]
[1748991466443,1.00826008,660.84,660.66,0.78096613]
[1748991466647,1.00826008,660.83,660.66,0.78096613]
[1748991466845,1.00826008,660.82,660.66,0.78096613]
[1748991467052,1.00826008,660.81,660.66,0.78096613]
[1748991467243,1.00826008,660.8,660.66,0.78096613]
[1748991467547,1.00826008,660.79,660.66,0.78096613]
[1748991467740,1.00826008,660.78,660.66,0.78096613]
[1748991467943,1.13090819,660.97,660.66,0.78096613]
[1748991468140,1.00927045,660.96,660.66,0.78096613]
[1748991468344,1.00927045,660.95,660.66,0.78096613]
[1748991468541,1.00927045,660.94,660.66,0.78096613]
[1748991468741,1.00927045,660.93,660.66,0.78096613]
[1748991468942,1.50789114,661.08,660.66,0.78096613]
[1748991469141,1.13132497,660.97,660.66,0.78096613]
[1748991469345,1.00931377,660.96,660.66,0.78096613]
[1748991469547,1.00931377,660.95,660.67,0.47823856]
[1748991469748,1.00931377,660.94,660.67,0.78096155]
[1748991469942,1.00931377,660.93,660.67,0.78096155]
[1748991470141,1.00931377,660.92,660.67,0.78096155]
[1748991470346,1.00931377,660.91,660.67,0.78096155]
[1748991470546,1.00931377,660.9,660.67,0.78096155]
[1748991470748,1.00931377,660.89,660.67,0.78096155]
[1748991470944,1.00931377,660.88,660.67,0.78096155]
[1748991471146,1.00931377,660.87,660.67,0.78096155]
[1748991471447,1.00931377,660.86,660.67,0.78096155]
[1748991471649,1.00931377,660.85,660.67,0.78096155]
[1748991471849,1.00931377,660.84,660.67,0.78096155]
[1748991472050,1.00931377,660.83,660.67,0.78096155]
[1748991472243,1.00931377,660.82,660.67,0.78096155]
[1748991472444,1.00931377,660.81,660.67,0.78096155]
[1748991472643,1.00931377,660.8,660.67,0.78096155]
[1748991472844,1.50789114,661.07,660.67,0.78096155]
[1748991473145,1.13155281,660.97,660.67,0.78096155]
[1748991473344,2.14128709,660.96,660.67,0.78096155]
[1748991473543,1.00973428,660.95,660.67,0.78096155]
[1748991473750,1.00973428,660.94,660.67,0.78096155]
[1748991474049,1.00973428,660.93,660.67,0.78096155]
[1748991474245,1.00973428,660.92,660.67,0.78096155]
[1748991474445,1.00973428,660.91,660.67,0.78096155]
[1748991474650,1.00973428,660.9,660.67,0.78096155]
[1748991474850,1.13155281,660.96,660.67,0.78096155]
[1748991474851,1.00973428,660.89,660.67,0.78096155]
[1748991475050,1.00973428,660.88,660.67,0.78096155]
[1748991475245,1.00973428,660.87,660.67,0.78096155]
[1748991475544,1.00973428,660.86,660.67,0.78096155]
[1748991475749,1.00973428,660.85,660.68,0.30271841]
[1748991475947,1.00973428,660.84,660.68,0.30271841]
[1748991476147,1.00973428,660.83,660.68,0.30271841]
[1748991476350,1.00973428,660.82,660.68,0.30271841]
[1748991476551,1.00973428,660.81,660.68,0.30271841]
[1748991476751,1.50789114,661.06,660.68,0.30271841]
[1748991476949,1.13184522,660.96,660.68,0.30271841]
[1748991477150,1.00957861,660.95,660.68,0.30271841]
[1748991477354,1.00957861,660.94,660.68,0.30271841]
[1748991477548,1.00957861,660.93,660.68,0.30271841]
[1748991477753,1.00957861,660.92,660.68,0.30271841]
[1748991477953,1.00957861,660.91,660.68,0.30271841]
[1748991478151,1.00957861,660.9,660.68,0.30271841]
[1748991478348,1.00957861,660.89,660.68,0.30271841]
[1748991478547,1.00957861,660.88,660.68,0.30271841]
[1748991478851,1.00957861,660.87,660.68,0.30271841]
[1748991479049,1.00957861,660.86,660.68,0.30271841]
[1748991479250,1.00957861,660.85,660.68,0.30271841]
[1748991479451,1.00957861,660.84,660.68,0.30271841]
[1748991479653,1.00957861,660.83,660.68,0.30271841]
[1748991479851,1.00957861,660.82,660.68,0.30271841]
[1748991480057,1.00957861,660.81,660.68,0.30271841]
[1748991480253,1.00957861,660.8,660.68,0.30271841]
[1748991480459,1.00957861,660.79,660.68,0.30271841]
[1748991480759,1.005787,660.78,660.68,0.30271841]
[1748991480955,1.005787,660.77,660.68,0.30271841]
[1748991481159,1.005787,660.76,660.68,0.30271841]
[1748991481455,1.005787,660.75,660.68,0.30271841]
[1748991481658,1.005787,660.74,660.68,0.30271841]
[1748991481859,1.005787,660.73,660.68,0.30271841]
[1748991482059,1.1321673,660.94,660.68,0.30271841]
[1748991482256,1.00560508,660.93,660.68,0.30271841]
[1748991482456,1.00560508,660.92,660.68,0.30271841]
[1748991482659,1.00560508,660.91,660.68,0.30271841]
[1748991482859,1.00560508,660.9,660.68,0.30271841]
[1748991483155,1.00560508,660.89,660.68,0.30271841]
[1748991483355,1.00558348,660.88,660.68,0.30271841]
[1748991483555,1.00558348,660.87,660.68,0.30271841]
[1748991483759,1.00558348,660.86,660.68,0.30271841]
[1748991483961,1.00558348,660.85,660.68,0.30271841]
[1748991484161,1.00558348,660.84,660.68,0.30271841]
[1748991484360,1.00558348,660.83,660.68,0.30271841]
[1748991484562,1.00558348,660.82,660.68,0.30271841]
[1748991484761,1.00558348,660.81,660.68,0.30271841]
[1748991485059,1.00558348,660.8,660.68,0.30271841]
[1748991485261,1.00558348,660.79,660.68,0.30271841]
[1748991485459,1.00558348,660.78,660.68,0.30271841]
[1748991485660,1.13234597,660.92,660.68,0.30271841]
[1748991485661,1.00558348,660.77,660.68,0.30271841]
[1748991485859,1.00558348,660.76,660.68,0.30271841]
[1748991486064,1.00558348,660.75,660.68,0.30271841]
[1748991486264,1.00558348,660.74,660.68,0.30271841]
[1748991486459,1.00558348,660.73,660.68,0.30271841]
[1748991486664,1.00558348,660.72,660.68,0.30271841]
[1748991486863,1.13234597,660.92,660.68,0.30271841]
[1748991487168,1.00663919,660.91,660.68,0.30271841]
[1748991487363,1.00663919,660.9,660.68,0.30271841]
[1748991487570,1.00663919,660.89,660.68,0.30271841]
[1748991487867,1.00663919,660.88,660.68,0.30271841]
[1748991488070,1.00663919,660.87,660.68,0.30271841]
[1748991488363,1.00663919,660.86,660.68,0.30271841]
[1748991488667,1.00663919,660.85,660.68,0.30271841]
[1748991488966,1.00663919,660.84,660.68,0.30271841]
[1748991489169,1.00663919,660.83,660.68,0.30271841]
[1748991489370,1.00663919,660.82,660.68,0.30271841]
[1748991489670,1.00663919,660.81,660.68,0.30271841]
[1748991489865,1.00663919,660.8,660.68,0.30271841]
[1748991490067,1.00663919,660.79,660.68,0.30271841]
[1748991490370,1.00663919,660.78,660.68,0.30271841]
[1748991490566,1.00663919,660.77,660.68,0.30271841]
[1748991490767,1.00663919,660.76,660.68,0.30271841]
[1748991490967,1.00663919,660.75,660.68,0.30271841]
[1748991491169,1.1327387,660.9,660.68,0.30271841]
[1748991491170,1.00683765,660.74,660.68,0.30271841]
[1748991491372,1.00683765,660.73,660.68,0.30271841]
[1748991491569,1.00683765,660.72,660.68,0.30271841]
[1748991491766,1.00683765,660.71,660.68,0.30271841]
[1748991491968,1.13298237,660.9,660.68,0.30271841]
[1748991492168,1.00739596,660.89,660.68,0.30271841]
[1748991492468,3.76960388,661.55,660.68,0.30271841]
[1748991492469,1.00739596,660.88,660.68,0.30271841]
[1748991492667,1.00739596,660.87,660.68,0.30271841]
[1748991492868,1.00739596,660.86,660.68,0.30271841]
[1748991493067,1.00739596,660.85,660.68,0.30271841]
[1748991493273,1.00739596,660.84,660.68,0.30271841]
[1748991493474,1.00739596,660.83,660.68,0.30271841]
[1748991493670,1.00739596,660.82,660.68,0.30271841]
[1748991493874,1.00739596,660.81,660.68,0.30271841]
[1748991494076,1.00739596,660.8,660.68,0.30271841]
[1748991494275,1.00739596,660.79,660.68,0.30271841]
[1748991494470,1.00739596,660.78,660.68,0.30271841]
[1748991494671,1.00739596,660.77,660.68,0.30271841]
[1748991494872,1.00739596,660.76,660.68,0.30271841]
[1748991495074,1.00739596,660.75,660.68,0.30271841]
[1748991495275,1.00750913,660.74,660.68,0.30271841]
[1748991495470,1.00750913,660.73,660.68,0.30271841]
[1748991495674,1.00750913,660.72,660.68,0.30271841]
[1748991495969,1.00750913,660.71,660.68,0.30271841]
[1748991496174,1.13314624,660.91,660.68,0.30271841]
[1748991496376,1.00754359,660.9,660.68,0.30271841]
[1748991496673,1.00754359,660.89,660.68,0.30271841]
[1748991496878,1.00754359,660.88,660.68,0.30271841]
[1748991497178,1.00754359,660.87,660.68,0.30271841]
[1748991497373,1.00754359,660.86,660.68,0.30271841]
[1748991497574,1.00754359,660.85,660.68,0.30271841]
[1748991497778,1.00754359,660.84,660.68,0.30271841]
[1748991498077,1.00754359,660.83,660.68,0.30271841]
[1748991498277,1.00754359,660.82,660.68,0.30271841]
[1748991498478,1.00754359,660.81,660.68,0.30271841]
[1748991498778,1.00754359,660.8,660.68,0.30271841]
[1748991498974,1.00754359,660.79,660.68,0.30271841]
[1748991499172,1.00758365,660.78,660.68,0.30271841]
[1748991499377,3.76960388,661.55,660.68,0.30271841]
[1748991499378,1.00758365,660.77,660.68,0.30271841]
[1748991499573,1.13323159,660.91,660.68,0.30271841]
[1748991499574,1.00758365,660.76,660.68,0.30271841]
[1748991499778,1.00758365,660.75,660.68,0.30271841]
[1748991499978,1.00758365,660.74,660.68,0.30271841]
[1748991500178,1.00758365,660.73,660.68,0.30271841]
[1748991500374,1.00758365,660.72,660.68,0.30271841]
[1748991500573,1.00758365,660.71,660.68,0.30271841]
[1748991500776,1.00758365,660.7,660.68,0.30271841]
[1748991500973,1.13323159,660.91,660.68,0.30271841]
[1748991501177,1.00758125,660.9,660.68,0.30271841]
[1748991501378,1.00758125,660.89,660.68,0.30271841]
[1748991501678,1.00758125,660.88,660.68,0.30271841]
[1748991501878,1.00758125,660.87,660.68,0.30271841]
[1748991502076,1.00758125,660.86,660.68,0.30271841]
[1748991502275,1.00758125,660.85,660.68,0.30271841]
[1748991502480,1.00758125,660.84,660.68,0.30271841]
[1748991502675,1.00758125,660.83,660.68,0.30271841]
[1748991502875,1.00752769,660.82,660.68,0.30271841]
[1748991503080,1.00752769,660.81,660.68,0.30271841]
[1748991503273,1.00752941,660.8,660.68,0.30271841]
[1748991503475,1.00752941,660.79,660.68,0.30271841]
[1748991503775,1.00752941,660.78,660.68,0.30271841]
[1748991503973,1.00752941,660.77,660.68,0.30271841]
[1748991504176,1.00752941,660.76,660.68,0.30271841]
[1748991504382,1.00752941,660.75,660.68,0.30271841]
[1748991504580,1.00752941,660.74,660.68,0.30271841]
[1748991504780,1.00752941,660.73,660.68,0.30271841]
[1748991504979,1.00752941,660.72,660.68,0.30271841]
[1748991505278,1.00752941,660.71,660.68,0.30271841]
[1748991505577,1.00752941,660.7,660.68,0.30271841]
[1748991505782,1.1332304,660.91,660.68,0.30271841]
[1748991505982,1.00753235,660.9,660.68,0.30271841]
[1748991506282,1.00753235,660.89,660.68,0.30271841]
[1748991506582,1.1332304,660.92,660.68,0.30271841]
[1748991506583,1.00753235,660.88,660.68,0.30271841]
[1748991506782,1.00753235,660.87,660.68,0.30271841]
[1748991506977,1.00753235,660.86,660.68,0.30271841]
[1748991507181,1.00753235,660.85,660.68,0.30271841]
[1748991507381,1.00753235,660.84,660.68,0.30271841]
[1748991507678,1.00753235,660.83,660.68,0.30271841]
[1748991507883,1.00753235,660.82,660.68,0.30271841]
[1748991508080,1.00753235,660.81,660.68,0.30271841]
[1748991508284,1.00753235,660.8,660.68,0.30271841]
[1748991508483,1.00753235,660.79,660.68,0.30271841]
[1748991508685,1.00753235,660.78,660.68,0.30271841]
[1748991508989,1.00753235,660.77,660.68,0.30271841]
[1748991509187,1.00753235,660.76,660.68,0.30271841]
[1748991509381,1.00753235,660.75,660.68,0.30271841]
[1748991509584,1.00753235,660.74,660.68,0.30271841]
[1748991509884,1.00753235,660.73,660.68,0.30271841]
[1748991510084,1.00753235,660.72,660.68,0.30271841]
[1748991510286,1.00753235,660.71,660.68,0.30271841]
[1748991510480,1.00753235,660.7,660.68,0.30271841]
[1748991510779,1.1332304,660.92,660.68,0.30271841]
[1748991510983,1.00749932,660.91,660.68,0.30271841]
[1748991511286,1.00749932,660.9,660.68,0.30271841]
[1748991511481,1.00749932,660.89,660.68,0.30271841]
[1748991511687,1.00749932,660.88,660.68,0.30271841]
[1748991511888,1.00749932,660.87,660.68,0.30271841]
[1748991512089,1.00749932,660.86,660.68,0.30271841]
[1748991512288,1.00749932,660.85,660.68,0.30271841]
[1748991512589,1.00749932,660.84,660.68,0.30271841]
[1748991512784,1.00749932,660.83,660.68,0.30271841]
[1748991512985,1.00749932,660.82,660.68,0.30271841]
[1748991513180,1.00749932,660.81,660.68,0.30271841]
[1748991513382,1.00749932,660.8,660.68,0.30271841]
[1748991513585,1.00749932,660.79,660.68,0.30271841]
[1748991513782,1.00749932,660.78,660.68,0.30271841]
[1748991513986,1.00749932,660.77,660.68,0.30271841]
[1748991514187,1.00749932,660.76,660.68,0.30271841]
[1748991514390,1.00749932,660.75,660.68,0.30271841]
[1748991514688,1.00749932,660.74,660.68,0.30271841]
[1748991514988,1.00749932,660.73,660.68,0.30271841]
[1748991515186,1.13323727,660.92,660.68,0.30271841]
[1748991515388,2.1406748,660.91,660.68,0.30271841]
[1748991515588,1.00743194,660.9,660.68,0.30271841]
[1748991515788,1.00743194,660.89,660.68,0.30271841]
[1748991515990,1.00743194,660.88,660.68,0.30271841]
[1748991516291,1.50789114,661.0,660.68,0.30271841]
[1748991516483,1.13324795,660.9,660.68,0.30271841]
[1748991516682,1.00742081,660.89,660.68,0.30271841]
[1748991516989,1.00742081,660.88,660.68,0.30271841]
[1748991517188,1.00742081,660.87,660.68,0.30271841]
[1748991517384,1.00742081,660.86,660.68,0.78095697]
[1748991517588,1.00742081,660.85,660.68,0.78095697]
[1748991517788,1.00742081,660.84,660.68,0.78095697]
[1748991518091,1.00742081,660.83,660.7,0.47823856]
[1748991518388,1.00742081,660.82,660.7,0.47823856]
[1748991518589,1.00742081,660.81,660.69,0.47823856]
[1748991518890,1.00742081,660.8,660.7,0.47823856]
[1748991519083,1.00742081,660.79,660.68,0.30271841]
[1748991519284,3.76960388,661.57,660.68,0.30271841]
[1748991519285,1.00742081,660.78,660.68,0.30271841]
[1748991519484,1.00742081,660.77,660.68,0.30271841]
[1748991519687,1.00742081,660.76,660.68,0.30271841]
[1748991519888,1.00742081,660.75,660.68,0.30271841]
[1748991520089,1.00742081,660.74,660.68,0.30271841]
[1748991520284,1.00742081,660.73,660.68,0.30271841]
[1748991520489,1.00742081,660.72,660.68,0.30271841]
[1748991520690,1.13324795,660.96,660.68,0.30271841]
[1748991520989,1.00734769,660.95,660.68,0.30271841]
[1748991521188,1.00734769,660.94,660.68,0.30271841]
[1748991521389,1.00734769,660.93,660.68,0.30271841]
[1748991521588,1.00734769,660.92,660.68,0.30271841]